Cogmind - Beta 17 @@@ ROGUE MODE // 2026.07.28 @ 12:18:52 Player: Afro Result: Destroyed by Y-45 Defender with Beam Rifle Performance ------------- Evolutions (1) 500 Regions Visited (2) 400 Robots Destroyed (40) 200 Value Destroyed (1089) 1089 Prototype IDs (2) 40 Alien Tech Used (0) 0 Bonus (0) 0 TOTAL SCORE: 2229 Bonus ------- None Cogmind --------- Core Integrity 0/400 Matter 128/300 Energy 219/250 System Corruption 5% Temperature Warm (170) Movement Rolling (105) Ox1 Location -9/Materials Parts ------- > --- POWER (1) -------- Ion Engine > --- PROPULSION (3) --- Improved Aluminum Leg Armored Wheel Armored Wheel > --- UTILITY (2) ------ Large Storage Unit Signal Interpreter > --- WEAPON (3) ------- Heavy Assault Rifle > --- INVENTORY (15) --- Ion Engine Improved Ion Engine Cryofiber Web Cryofiber Web Heat Sink Signal Interpreter Advanced Targeting Computer Medium Armor Plating Advanced Beam Cannon Grenade Launcher Peak State ------------ > --- POWER ------------ Ion Engine > --- PROPULSION ------- Aluminum Leg Improved Aluminum Leg Improved Aluminum Leg > --- UTILITY ---------- Large Storage Unit Signal Interpreter > --- WEAPON ----------- Advanced Beam Cannon Heavy Assault Rifle Improved Assault Rifle > --- INVENTORY -------- Ion Engine Light Ion Engine Improved Ion Engine Improved Aluminum Leg Improved Aluminum Leg Armored Wheel Armored Wheel Cryofiber Web Cryofiber Web Heat Sink Signal Interpreter Advanced Targeting Computer Medium Armor Plating Heavy Assault Rifle Grenade Launcher [Rating: 18] Favorites ----------- Power Ion Engine Engine Ion Engine Propulsion Improved Aluminum Leg Treads Light Treads Leg Improved Aluminum Leg Wheel Armored Wheel Utility Signal Interpreter Storage Large Storage Unit Processor Signal Interpreter Weapon Heavy Assault Rifle Energy Gun Medium Laser Energy Cannon Advanced Beam Cannon Ballistic Gun Heavy Assault Rifle Ballistic Cannon Light Cannon Build | -11 -10 -9 ------- Run | Yrd Mat Mat Slots Evolved 2 | . . 2 Power . | . . . Propulsion 1 | . . 1 Utility . | . . . Weapon 1 | . . 1 Parts Attached 35 | 6 6 23 Power 5 | 1 1 3 Engine 5 | 1 1 3 Core . | . . . Reactor . | . . . Propulsion 12 | 2 2 8 Treads 2 | 2 . . Leg 8 | . 2 6 Wheel 2 | . . 2 Hover . | . . . Flight . | . . . Utility 5 | 1 3 1 Device . | . . . Storage 2 | 1 . 1 Processor 3 | . 3 . Hackware . | . . . Protection . | . . . Artifact . | . . . Weapon 13 | 2 . 11 Energy Gun 3 | 2 . 1 Energy Cannon 3 | . . 3 Ballistic Gun 6 | . . 6 Ballistic Cannon 1 | . . 1 Launcher . | . . . Special Weapon . | . . . Impact Weapon . | . . . Slashing Weapon . | . . . Piercing Weapon . | . . . Special Melee Weapon . | . . . Unidentified Prototypes 2 | . . 2 Parts Lost 6 | . . 6 Power . | . . . Propulsion 4 | . . 4 Utility . | . . . Weapon 2 | . . 2 Highest Loss Streak 6 | . . 6 To Critical Strikes . | . . . Average Backups 12 | 2 7 14 Power 2 | . 1 2 Propulsion 3 | 1 4 3 Utility 4 | . . 5 Weapon 1 | . . 1 Tool/Special . | . . . Unused Backups 21 | . 4 17 Power 4 | . . 4 Propulsion 5 | . 2 3 Utility 9 | . 1 8 Weapon 3 | . 1 2 Tool/Special . | . . . Average Slot Usage (%) 98 | . 96 98 Engine 11 | . 14 11 Treads 1 | . 5 . Leg 29 | . 22 32 Storage 11 | . 14 11 Processor 10 | . 10 11 Energy Gun 11 | . 28 6 Energy Cannon 5 | . . 7 Ballistic Gun 12 | . . 17 Peak Build Rating 18 | 6 11 18 Average Rating 13 | 4 9 15 On Entrance 5 | . 6 10 Avg Prop Armor Cover (%) . | . . . Naked Turns . | . . . Heaviest Build 35 | 12 14 35 Greatest Support 40 | 40 40 36 Greatest Overweight (x) 1 | . 1 1 Average Overweight (x) . | . . . Largest Inventory Capacity 15 | 8 8 15 Average Capacity 12 | 7 8 14 Most Carried 15 | 4 8 15 Average Carried 12 | 2 7 14 Final Capacity 15 | 8 8 15 Final Carried 10 | 4 8 10 Class Distribution -------------------- 66% | Gunner 33% | Mutant Dominant Class ---------------- Mutant | -10/Materials Gunner | -9/Materials Resources | -11 -10 -9 ----------- Run | Yrd Mat Mat Matter Collected 905 | 260 60 585 Remotely . | . . . Salvage Created 1530 | . 316 1214 Parts 93 | . 23 70 Haulers Intercepted 2 | . 1 1 Recyclers Shooed 2 | . . 2 Parts Field Recycled . | . . . Retrieved Matter . | . . . Parts Self-Destructed . | . . . Prevented . | . . . Parts Restored . | . . . Kills | -11 -10 -9 ------- Run | Yrd Mat Mat Combat Hostiles Destroyed 32 | . 8 24 Guns 21 | . 8 13 Cannons 10 | . . 10 Classes Destroyed 8 | . 4 4 Worker 1 | . 1 . Builder 1 | . . 1 Hauler 2 | . 1 1 Recycler 3 | . . 3 Watcher 1 | . . 1 Swarmer 7 | . 3 4 Grunt 19 | . 5 14 Sentry 6 | . . 6 Best Kill Streak 5 | . 5 4 Combat Bots Only 4 | . 4 4 Max Kills in Single Turn 2 | . 2 2 Gunslinging 1 | . 1 . Exploded . | . . . Melee . | . . . Uniques/NPCs Destroyed . | . . . Combat | -11 -10 -9 -------- Run | Yrd Mat Mat Hostile Shots Fired 170 | . 30 140 Missed 32 | . 7 25 Hits 138 | . 23 115 Projectile 138 | . 23 115 Critical Strikes 1 | . . 1 Damage Taken 1887 | . 238 1649 Core 449 | . 40 409 Absorbed by Shields . | . . . Core Remaining (%) 92 | 100 84 . Volleys Fired 92 | . 20 72 Largest 3 | . 2 3 Hottest 175 | . 100 175 Shots Fired 230 | . 40 190 Gun 184 | . 40 144 Cannon 46 | . . 46 Launcher . | . . . Special . | . . . Kinetic 120 | . . 120 Thermal 110 | . 40 70 Explosive . | . . . Electromagnetic . | . . . Robot Hit Streak 12 | . 11 12 Robot Miss Streak 5 | . 2 5 Penetration Max . | . . . Secondary Targets 3 | . 3 . Max Gunslinging Chain 1 | . 1 . Shots Hit Robots 138 | . 32 106 Core Hits 61 | . 16 45 Critical Kills 1 | . . 1 Critical Parts Destroyed . | . . . Critical Strikes 8 | . 3 5 Burn 7 | . 3 4 Meltdown 1 | . . 1 Melee Attacks . | . . . Impact . | . . . Slashing . | . . . Piercing . | . . . Sneak Attacks . | . . . Combat Hostiles . | . . . Follow-up Attacks . | . . . Damage Inflicted 2301 | 3 415 1883 Guns 1537 | . 413 1124 Cannons 596 | . . 596 Explosions 75 | . . 75 Melee . | . . . Ramming 93 | 3 2 88 Kinetic 912 | . . 912 Thermal 1221 | . 413 808 Explosive 75 | . . 75 Electromagnetic . | . . . Impact . | . . . Slashing . | . . . Piercing . | . . . Highest Corruption 5 | . . 5 Average Corruption 4 | . . 4 Corruption Purged . | . . . Corruption Blocked . | . . . Effects 41 | . . 41 Message Errors 10 | . . 10 Matter Fused 10 | . . 10 Heat Flow Errors 5 | . . 5 Energy Discharges 4 | . . 4 Parts Rejected 1 | . . 1 Data Loss (minor) 4 | . . 4 Data Loss (major) 1 | . . 1 Misfires 5 | . . 5 Weapon Failures 1 | . . 1 Overload Shots . | . . . Overflow Damage 12 | . . 12 Projectiles 12 | . . 12 Explosions . | . . . Melee . | . . . Knockbacks 1 | . . 1 Impact . | . . . Kinetic 1 | . . 1 Secondary . | . . . Self-Inflicted Damage 111 | . . 111 Shots 1 | . . 1 Rammed 2 | 2 . . Targets Rammed 13 | 2 1 10 Kicked 11 | . 1 10 Crushed . | . . . Highest Temperature 572 | . 433 572 Average Temperature 171 | . 147 178 Received Heat Transfer 732 | . 102 630 Effects 20 | . 1 19 Shutdowns 4 | . . 4 Energy Bleed 1 | . . 1 Interference 5 | . . 5 Matter Decay 2 | . . 2 Short Circuit 4 | . 1 3 Damage (minor) 1 | . . 1 Damage (major) 2 | . . 2 Damage (core) 1 | . . 1 Siege Activations . | . . . Martial Activations . | . . . Shielding Activations . | . . . Robots Disrupted . | . . . Combat Hostiles . | . . . Robots Corrupted . | . . . Combat Hostiles . | . . . Parts Fried . | . . . Impact Corruptions . | . . . Robots Melted 1 | . . 1 Combat Hostiles 1 | . . 1 Parts Melted 9 | . 2 7 Heat Transferred 3515 | . 1443 2072 Parts Sabotaged . | . . . Parts Stolen . | . . . Parts Stripped . | . . . Power Chain Reactions . | . . . Alert | -11 -10 -9 ------- Run | Yrd Mat Mat Maximum Alert Level 1 | . . 1 Low Security (%) 92 | 100 100 90 Level 1 7 | . . 9 Level 2 . | . . . Level 3 . | . . . Level 4 . | . . . Level 5 . | . . . High Security . | . . . Max Security . | . . . Peak Influence 347 | . 110 347 Initial 1 | . . 1 Average 67 | . 39 81 Influence Increases 1085 | . 221 864 Destroy 0b10 Robot/C 640 | . 160 480 Destroy 0b10 Robot/NC 40 | . 10 30 Destroy Leader 176 | . 32 144 Successful Hack 12 | . 4 8 Disable Machine 30 | . . 30 Destroy Structure 37 | . . 37 Lose Combat Pursuer 150 | . 15 135 Influence Decreases 748 | . 216 532 Entered New Map 4 | . . 4 Time Decay 684 | . 216 468 Lost Part 60 | . . 60 Squads Dispatched 7 | . 2 5 Investigation 3 | . 1 2 Extermination . | . . . Reinforcement 4 | . 1 3 Assault . | . . . Garrison . | . . . Intercept . | . . . Searches Triggered . | . . . Construction Impeded 1 | . . 1 Haulers Reinforced . | . . . Active Scanning Responses . | . . . Cargo Convoy Interrupts . | . . . Stealth | -11 -10 -9 --------- Run | Yrd Mat Mat Distress Signals 7 | . 1 6 Communications Jammed . | . . . Distress Signals . | . . . Times Spotted 52 | . 10 42 Peak Tracking Total 8 | . 5 8 Tactical Retreats 7 | . 1 6 Traps | -11 -10 -9 ------- Run | Yrd Mat Mat Traps Triggered 4 | . . 4 Indirectly . | . . . Trap Hack Attempts . | . . . Triggered . | . . . Disarmed . | . . . Reprogrammed . | . . . Reused . | . . . Traps Extracted . | . . . Installed . | . . . Triggered . | . . . Machines | -11 -10 -9 ---------- Run | Yrd Mat Mat Machines Disabled 3 | . . 3 Max in Single Turn 2 | . . 2 Machines Repaired . | . . . Machines Dismantled . | . . . Machines Sabotaged . | . . . Overloaded Fab Kills . | . . . Hacking | -11 -10 -9 --------- Run | Yrd Mat Mat Machines Accessed 9 | . 4 5 Terminals 8 | . 4 4 Fabricators . | . . . Repair Stations . | . . . Recycling Units 1 | . . 1 Scanalyzers . | . . . Garrison Access . | . . . Total Hacks 20 | . 10 10 Successful 6 | . 5 1 Failed 14 | . 5 9 Catastrophic 1 | . 1 . Database Lockouts . | . . . Manual 8 | . 4 4 Terminals 18 | . 10 8 Fabricators . | . . . Repair Stations . | . . . Recycling Units 2 | . . 2 Scanalyzers . | . . . Garrison Access . | . . . Terminal Hacks 6 | . 5 1 Record 1 | . 1 . Branch Access Points 1 | . . 1 Alert Level 1 | . 1 . Locate Traps 3 | . 3 . Fabricator Hacks . | . . . Repair Station Hacks . | . . . Recycling Unit Hacks . | . . . Scanalyzer . | . . . Garrison Access Hacks . | . . . Unauthorized Hacks . | . . . Terminals . | . . . Fabricators . | . . . Repair Stations . | . . . Recycling Units . | . . . Scanalyzers . | . . . Garrison Access . | . . . Data Cores Recovered . | . . . Used . | . . . Hacking Detections 7 | . 3 4 Full Trace Events 2 | . 1 1 Feedback Events . | . . . Feedback Blocked . | . . . Robot Schematics Acquired . | . . . Robots Built . | . . . Authchips . | . . . Time . | . . . Total Robot Build Rating . | . . . Part Schematics Acquired . | . . . Parts Built . | . . . Authchips . | . . . Time . | . . . Total Part Build Rating . | . . . Part Studies Acquired . | . . . Parts Repaired . | . . . Time . | . . . Parts Recycled . | . . . Recycled Matter . | . . . Retrieved Matter . | . . . Retrieved Components . | . . . Parts Scanalyzed . | . . . Part Schematics Acquired . | . . . Parts Damaged . | . . . Bothacking | -11 -10 -9 ------------ Run | Yrd Mat Mat Used RIF Installer . | . . . Robots Hacked . | . . . Non-combat . | . . . Combat . | . . . Robot Hacks Applied . | . . . Relay Couplers Released . | . . . Fabnet Peak Effective % . | . . . Robots Rewired . | . . . Allies Hacked . | . . . Hacks Repelled . | . . . Allies | -11 -10 -9 -------- Run | Yrd Mat Mat Total Allies . | . . . Largest Group . | . . . Highest-Rated Group . | . . . Highest-Rated Ally . | . . . Total Orders . | . . . Ally Attacks . | . . . Total Damage . | . . . Kills . | . . . Allies Corrupted . | . . . Allies Melted . | . . . Intel | -11 -10 -9 ------- Run | Yrd Mat Mat Active Infowar (turns) . | . . . Robot Analysis Total . | . . . Derelict Logs Recovered . | . . . Drone Launches . | . . . Drone Recoveries . | . . . Exploration | -11 -10 -9 ------------- Run | Yrd Mat Mat Turns Passed 2596 | 111 618 1867 Spaces Moved 1556 | 62 428 1066 Core 3 | 3 . . Treads 104 | 59 45 . Legs 1449 | . 383 1066 Wheels . | . . . Hover . | . . . Flight . | . . . Fastest Speed 50 | 50 120 120 Average Speed 122 | 154 124 120 Slowest Speed 190 | 160 190 190 Overloaded Moves . | . . . Propulsion Burnouts . | . . . Robots Hopped . | . . . Potential Cave-ins . | . . . Cave-ins Triggered . | . . . Exploration Rate (%) 38 | 3 46 66 Regions Visited 2 Branch Regions . Pre-discovered Areas . | . . . Known Exits Taken 1 | . 1 . Unknown Exits Taken 1 | 1 . . Scrap Searched . | . . . Spaces Dug . | . . . Terrain Destroyed 33 | . . 33 Melee . | . . . Projectile . | . . . AOE 33 | . . 33 Terrain Rammed . | . . . Walls Destroyed . | . . . Machines Disabled . | . . . Actions | -11 -10 -9 --------- Run | Yrd Mat Mat Total 2063 | 73 475 1515 Wait 299 | . 4 295 Move 1555 | 62 427 1066 Hop . | . . . Pick Up 32 | 4 9 19 Fast Attach 17 | 6 4 7 Attach 7 | . . 7 Detach . | . . . Swap 15 | . 2 13 Drop 34 | . 8 26 Fire 92 | . 20 72 Melee . | . . . Ram . | . . . Kick 11 | . 1 10 Crush 1 | 1 . . Escape Stasis . | . . . Rewire . | . . . Trap . | . . . Miscellaneous . | . . . Route ------- -11/Scrapyard -10/Materials (discovered 2 exits: *Mat / *Min) -9/Materials (discovered 3 exits: *Mat / *Min x2) History --------- Turn | Location | Event 34 | -11/Scrapyard | Discovered new exit (range 16) 112 | -11/Scrapyard | Entered Materials 294 | -10/Materials | Discovered new exit (range 14) 304 | -10/Materials | Build established: Mutant 513 | -10/Materials | Identified exit to Mines 669 | -10/Materials | Discovered new exit (range 16) 686 | -10/Materials | Identified exit to Materials 730 | -10/Materials | Entered another Materials area 730 | -9/Materials | Evolved 2 slots: Propulsion x1, Weapon x1 1139 | -9/Materials | Build established: Gunner 1217 | -9/Materials | Discovered new exit (range 5) 1222 | -9/Materials | Identified exit to Materials 1958 | -9/Materials | Discovered new exit (range 7) 1964 | -9/Materials | Identified exit to Mines 2315 | -9/Materials | Discovered exit to Mines (range 5) 2543 | -9/Materials | Core integrity fell below 50% 2558 | -9/Materials | Core integrity fell below 20% 2597 | -9/Materials | Destroyed by Y-45 Defender with Beam Rifle Last Messages --------------- 02569_ Overheating: Matter decay (-34). 02569_ R-06 Scavenger collects Aluminum Leg. 02570_ Overheating: Energy bleed (-49). 02576_ Hvy. Assault Rifle broken. 02576_ Overheating: Short circuit. 02576_ Critical hit (Burn: +37). 02577_ Y-45 Defender destroyed. 02578_ Imp. Aluminum Leg broken. 02578_ Overheating: Short circuit. 02580_ Power failure, Ion Engine shutdown. 02581_ Broken Imp. Aluminum Leg destroyed. 02585_ Y-45 Defender destroyed. 02591_ Imp. Assault Rifle destroyed. 02591_ G-34 Mercenary destroyed. 02592_ K-01 Serf collects debris. 02593_ Overheating: System interference. 02593_ Hvy. Assault Rifle temporarily disabled. 02594_ N GUF2XO,6AVGMFS9QI6MFRQH 02594_ Dropped Broken Hvy. Assault Rifle. 02594_ Hvy. Assault Rifle destroyed. Map ----- +----------------------------------------------------+ | ##" "## #???# # + #???????? ????? | | #???#"" # ###########??????? ????? | | > %= #???#"Y # #### #??????? ????? | | [=* *#???#"" + + #??????? #???? | | ### ##/####### # #### """#??????? #??"" | | ??#########!%=! %!+! # #??# """#??????? ###"T | | ??????????# """"" # + #??# """#??????+ | | ??????????# """"" #* # #??# #??????# | | ??????????# """"" # # #??########??????# | | ??????????# ###### #????????????????# """" | | ??????????# !! #????# #????????????????# """" | | ??????????# !! #????#r#??????# [ ##### """" | | ??????????#! ! #????# #??????+ | | ??????????# #????# #??????# #### | | ??????????##########????# #???????????????# | | ????????????????????????# #???????????????# ###T## | | ????????????????????????# #???????????????# #???#? | | ????????????????????????# #???????????????# #????? | | ????????????????????????# #???????????????# #????? | | ????????????????????????# #???????????????# #????? | | ????????????????????????# #???????????????# #????? | | ?????????????????######## #???????????????# #????? | | ?????????????????# !#[#???????????????# #????? | | ?????????????????# =[#%#???????????????# #????? | | ?????????????????# %g=#?????????????### ###??? | | ?????????????????# > #@#?????????????# #??? | | ?????????????????# #Y############### #??? | | ?????????????????# #=[ % % T #??? | | ?????????????????######################## #??? | | ????????????????????????????????????????# #??? | | ????????????????????????????????????????#######??? | | ?????????????????????????????????????????????????? | | ?????????????????????????????????????????????????? | | ?????????????????????????????????????????????????? | | ?????????????????????????????????????????????????? | | ?????????????????????????????????????????????????? | | ?????????????????????????????????????????????????? | | ?????????????????????????????????????????????????? | | ?????????????????????????????????????????????????? | | ?????????????????????????????????????????????????? | | ?????????????????????????????????????????????????? | | ?????????????????????????????????????????????????? | | ?????????????????????????????????????????????????? | | ?????????????????????????????????????????????????? | | ?????????????????????????????????????????????????? | | ?????????????????????????????????????????????????? | | ?????????????????????????????????????????????????? | | ?????????????????????????????????????????????????? | | ?????????????????????????????????????????????????? | | ?????????????????????????????????????????????????? | +----------------------------------------------------+ Best States ------------- Heat Dissipation 28 Energy Generation 10 Energy Capacity 250 Matter Stores 300 Matter Capacity 300 Sight Range 16 Terrain Scan Density 10 Evasion (%) 55 Targeting Accuracy 6 Recoil Reduction 2 Item Schematics ----------------- None Robot Schematics ------------------ None Fabricated ------------ Nothing Repaired ---------- Nothing Studied --------- None Alien Tech Used ----------------- None Achievements -------------- None Challenges ------------ None Game ------ Seed IntegratedNetworkRigger Manual? 0 Play Time 00:29:25 Cumulative 29.2 hours Start 2026.07.28 @ 11:49:46 End 2026.07.28 @ 12:18:52 Sessions 1 Manual Loads 0 Difficulty Rogue Special Mode None Game No. 32 Rogue 32 Adventurer 0 Explorer 0 Win Type - Total 0 Types 0/0/0/0/0/0/0/0/0/0 Lore% 5 Gallery% 20 Achievement% 16 Wizard Run 0 Options --------- Layout 1 ASCII 0 Keyboard 0 Movement Mouse Keybinds 0 Fullscreen 2 Font 24/Smallcaps Map View 50x35 Zoom Use 0% Tactical HUD 1 Map Filters NONE Filters NONE Steam 1 RUN: b9648ee8-1e96-49db-8727-33241f79311e